Cogmind - Beta 16.1 @@@ ROGUE MODE // 2026.04.02 @ 14:31:36 Player: Ammie Result: Destroyed by G-47 Trooper with Particle Gun Performance ------------- Evolutions (2) 1000 Regions Visited (4) 800 Robots Destroyed (52) 260 Value Destroyed (1691) 1691 Prototype IDs (1) 20 Alien Tech Used (0) 0 Bonus (0) 0 TOTAL SCORE: 3771 Bonus ------- None Cogmind --------- Core Integrity 0/550 Matter 290/300 Energy 212/275 System Corruption 2% Temperature Cool (9) Movement Core (200) Ox3 Location -8/Materials Parts ------- > --- POWER (2) -------- Deuterium Engine > --- PROPULSION (4) --- (None) > --- UTILITY (3) ------ Improved Heat Sink Improved Targeting Computer > --- WEAPON (2) ------- (None) > --- INVENTORY (5) ---- Scrap Suit Relay Coupler [Hunter] (10) Peak State ------------ > --- POWER ------------ Deuterium Engine Light Deuterium Engine > --- PROPULSION ------- Flight Unit Flight Unit Flight Unit > --- UTILITY ---------- Weight Redist. System Sensor Array Improved Targeting Computer > --- WEAPON ----------- Beamcaster EM Pulse Cannon > --- INVENTORY -------- Light Nuclear Core Scrap Suit EM Pulse Cannon [Rating: 23] Favorites ----------- Power Deuterium Engine Engine Deuterium Engine Power Core Light Nuclear Core Propulsion Flight Unit Leg Carbon-fiber Leg Wheel Compact Wheel Flight Unit Flight Unit Utility Sensor Array Device Sensor Array Storage Medium Matter Pod Processor Visual Processing Unit Weapon Heavy EM Pulse Gun Energy Gun Heavy EM Pulse Gun Energy Cannon Particle Cannon Ballistic Gun Light Assault Rifle Build | -11 -10 -9 -9 -8 ------- Run | Yrd Mat Mat Min Mat Slots Evolved 4 | . . 2 . 2 Power 1 | . . . . 1 Propulsion 2 | . . 2 . . Utility 1 | . . . . 1 Weapon . | . . . . . Parts Attached 54 | 6 8 28 2 10 Power 9 | 2 1 2 1 3 Engine 7 | 2 1 2 1 1 Core 2 | . . . . 2 Reactor . | . . . . . Propulsion 20 | 2 5 12 . 1 Treads . | . . . . . Leg 10 | 2 . 8 . . Wheel 1 | . 1 . . . Hover . | . . . . . Flight 9 | . 4 4 . 1 Utility 7 | . . 5 . 2 Device 4 | . . 3 . 1 Storage 1 | . . 1 . . Processor 2 | . . 1 . 1 Hackware . | . . . . . Protection . | . . . . . Artifact . | . . . . . Weapon 18 | 2 2 9 1 4 Energy Gun 9 | 1 2 5 1 . Energy Cannon 6 | . . 2 . 4 Ballistic Gun 3 | 1 . 2 . . Ballistic Cannon . | . . . . . Launcher . | . . . . . Special Weapon . | . . . . . Impact Weapon . | . . . . . Slashing Weapon . | . . . . . Piercing Weapon . | . . . . . Special Melee Weapon . | . . . . . Unidentified Prototypes 1 | . . 1 . . Parts Lost 33 | . 7 12 . 14 Power 6 | . 2 1 . 3 Propulsion 13 | . 2 7 . 4 Utility 3 | . . 1 . 2 Weapon 11 | . 3 3 . 5 Highest Loss Streak 8 | . 7 5 . 8 To Critical Strikes . | . . . . . Average Backups 3 | . 3 3 4 3 Power 1 | . 1 2 1 1 Propulsion . | . 1 . . . Utility . | . . . 1 1 Weapon . | . . . 1 . Tool/Special . | . . . . . Unused Backups 6 | . . 1 2 3 Power 2 | . . 1 1 . Propulsion . | . . . . . Utility 2 | . . . . 2 Weapon 2 | . . . 1 1 Tool/Special . | . . . . . Average Slot Usage (%) 77 | . 60 82 88 66 Engine 10 | . 13 10 11 6 Leg 16 | . 7 26 . . Flight 12 | . 16 6 33 19 Device 13 | . . 14 22 16 Processor 4 | . . 4 . 8 Energy Gun 9 | . 11 8 22 4 Energy Cannon 5 | . . 6 . 8 Ballistic Gun 4 | . 10 4 . . Peak Build Rating 23 | 5 5 22 17 23 Average Rating 13 | 3 4 14 14 16 On Entrance 8 | . 5 4 14 17 Avg Prop Armor Cover (%) 11 | . 13 7 . 16 Naked Turns . | . . . . . Heaviest Build 21 | 8 8 18 18 21 Greatest Support 60 | 20 20 60 21 21 Greatest Overweight (x) 4 | . 1 4 . 3 Average Overweight (x) . | . . . . . Largest Inventory Capacity 5 | 5 5 5 5 5 Average Capacity 5 | 5 5 5 5 5 Most Carried 5 | 1 5 5 5 5 Average Carried 3 | . 3 3 4 4 Final Capacity 5 | 5 5 5 5 5 Final Carried 5 | 1 5 5 5 3 Class Distribution -------------------- 57% | Mutant 42% | Scavenger-Mutant Dominant Class ---------------- Mutant | -10/Materials Mutant | -9/Materials Scavenger-Mutant | -9/Mines Mutant | -8/Materials Resources | -11 -10 -9 -9 -8 ----------- Run | Yrd Mat Mat Min Mat Matter Collected 947 | 260 93 471 20 103 Remotely . | . . . . . Salvage Created 2001 | . 246 862 221 672 Parts 131 | . 18 59 10 44 Haulers Intercepted 1 | . . 1 . . Recyclers Shooed . | . . . . . Parts Field Recycled . | . . . . . Retrieved Matter . | . . . . . Parts Self-Destructed . | . . . . . Prevented . | . . . . . Parts Restored . | . . . . . Kills | -11 -10 -9 -9 -8 ------- Run | Yrd Mat Mat Min Mat Combat Hostiles Destroyed 43 | . 9 19 4 11 Guns 24 | . 9 12 2 1 Cannons 16 | . . 6 . 10 AOE 3 | . . 1 2 . Classes Destroyed 10 | . 2 5 . 3 Worker 2 | . . 2 . . Hauler 1 | . . 1 . . Recycler 1 | . . . . 1 Operator 1 | . . . . 1 Watcher 4 | . . 4 . . Swarmer 13 | . 6 7 . . Grunt 14 | . 3 5 2 4 Duelist 2 | . . 2 . . Sentry 13 | . . 5 2 6 Hunter 1 | . . . . 1 Best Kill Streak 6 | . 4 6 2 2 Combat Bots Only 4 | . 4 4 2 2 Max Kills in Single Turn 2 | . 1 2 2 1 Gunslinging . | . . . . . Exploded 2 | . . 1 2 . Melee . | . . . . . Uniques/NPCs Destroyed . | . . . . . Combat | -11 -10 -9 -9 -8 -------- Run | Yrd Mat Mat Min Mat Hostile Shots Fired 408 | . 101 195 3 109 Missed 145 | . 37 78 3 27 Hits 263 | . 64 117 . 82 Melee 6 | . . 6 . . Projectile 257 | . 64 111 . 82 Critical Strikes 7 | . . 3 . 4 Damage Taken 3427 | . 620 1496 . 1311 Core 942 | . 171 207 . 564 Absorbed by Shields . | . . . . . Regen/Repaired (Parts) 18 | . 18 . . . Core Remaining (%) 59 | 100 31 . 48 . Volleys Fired 194 | . 40 110 6 38 Largest 2 | . 2 2 2 2 Hottest 138 | . 60 124 90 138 Shots Fired 310 | . 65 173 12 60 Gun 197 | . 65 108 12 12 Cannon 113 | . . 65 . 48 Launcher . | . . . . . Special . | . . . . . Kinetic 95 | . 33 62 . . Thermal 87 | . 3 49 . 35 Explosive . | . . . . . Electromagnetic 128 | . 29 62 12 25 Robot Hit Streak 11 | . 6 10 5 11 Robot Miss Streak 6 | . 4 6 4 2 Penetration Max . | . . . . . Secondary Targets 3 | . 2 1 . . Max Gunslinging Chain 1 | . 1 1 . . Shots Hit Robots 170 | . 32 96 6 36 Core Hits 82 | . 15 41 5 21 Critical Kills . | . . . . . Critical Parts Destroyed 1 | . . 1 . . Critical Strikes 2 | . . 2 . . Destroy 1 | . . 1 . . Corrupt 1 | . . 1 . . Melee Attacks . | . . . . . Impact . | . . . . . Slashing . | . . . . . Piercing . | . . . . . Sneak Attacks . | . . . . . Combat Hostiles . | . . . . . Follow-up Attacks . | . . . . . Damage Inflicted 3032 | . 342 1637 173 880 Guns 1323 | . 338 787 93 105 Cannons 1542 | . . 792 . 750 Explosions 122 | . . 42 80 . Melee . | . . . . . Ramming 45 | . 4 16 . 25 Kinetic 575 | . 146 429 . . Thermal 1207 | . 25 588 80 514 Explosive 42 | . . 42 . . Electromagnetic 1163 | . 167 562 93 341 Impact . | . . . . . Slashing . | . . . . . Piercing . | . . . . . Highest Corruption 2 | . . . . 2 Average Corruption 2 | . . . . 2 Corruption Purged . | . . . . . Corruption Blocked . | . . . . . Effects 1 | . . . . 1 Heat Flow Errors 1 | . . . . 1 Overload Shots . | . . . . . Overflow Damage 12 | . . 12 . . Projectiles 10 | . . 10 . . Explosions 2 | . . 2 . . Melee . | . . . . . Knockbacks . | . . . . . Impact . | . . . . . Kinetic . | . . . . . Secondary . | . . . . . Self-Inflicted Damage 71 | . 1 60 . 10 Shots 1 | . . 1 . . Rammed 16 | . 3 . . 13 Targets Rammed 23 | . 3 7 . 13 Kicked 7 | . . 7 . . Crushed . | . . . . . Highest Temperature 590 | . 105 420 72 590 Average Temperature 105 | . 28 90 25 180 Received Heat Transfer 1272 | . 207 543 . 522 Effects 23 | . . 1 . 22 Shutdowns 6 | . . 1 . 5 Interference 6 | . . . . 6 Matter Decay 1 | . . . . 1 Short Circuit 3 | . . . . 3 Damage (major) 6 | . . . . 6 Damage (core) 1 | . . . . 1 Siege Activations . | . . . . . Martial Activations . | . . . . . Shielding Activations . | . . . . . Robots Disrupted 1 | . . 1 . . Combat Hostiles 1 | . . 1 . . Robots Corrupted . | . . . . . Combat Hostiles . | . . . . . Parts Fried 8 | . . 5 . 3 Impact Corruptions . | . . . . . Robots Melted . | . . . . . Combat Hostiles . | . . . . . Parts Melted . | . . . . . Heat Transferred 2122 | . 74 1110 50 888 Parts Sabotaged . | . . . . . Parts Stolen . | . . . . . Parts Stripped . | . . . . . Power Chain Reactions 1 | . . . 1 . Alert | -11 -10 -9 -9 -8 ------- Run | Yrd Mat Mat Min Mat Maximum Alert Level 1 | . . 1 . 1 Low Security (%) 55 | 100 100 40 100 42 Level 1 44 | . . 59 . 57 Level 2 . | . . . . . Level 3 . | . . . . . Level 4 . | . . . . . Level 5 . | . . . . . High Security . | . . . . . Max Security . | . . . . . Peak Influence 363 | . 113 279 100 363 Initial 100 | . . 39 100 18 Average 154 | . 56 185 42 216 Influence Increases 1868 | . 303 863 97 605 Destroy 0b10 Robot/C 860 | . 180 380 80 220 Destroy 0b10 Robot/NC 45 | . . 35 . 10 Destroy Leader 240 | . 30 110 10 90 Successful Hack 3 | . 3 . . . Disable Machine 120 | . 15 90 . 15 Anti-Garrison Action 150 | . . . . 150 Destroy Structure 15 | . . 8 7 . Partial Spotted 45 | . 15 15 . 15 Lose Combat Pursuer 390 | . 60 225 . 105 Influence Decreases 1591 | . 210 698 308 375 Entered New Map 241 | . . 54 158 29 Time Decay 1030 | . 140 534 150 206 Lost Part 320 | . 70 110 . 140 Squads Dispatched 5 | . 1 1 . 3 Investigation 2 | . 1 . . 1 Extermination . | . . . . . Reinforcement 1 | . . 1 . . Assault 2 | . . . . 2 Garrison . | . . . . . Intercept . | . . . . . Searches Triggered . | . . . . . Construction Impeded . | . . . . . Haulers Reinforced . | . . . . . Active Scanning Responses . | . . . . . Cargo Convoy Interrupts . | . . . . . Stealth | -11 -10 -9 -9 -8 --------- Run | Yrd Mat Mat Min Mat Distress Signals 2 | . . 1 . 1 Communications Jammed . | . . . . . Distress Signals . | . . . . . Times Spotted 86 | . 14 41 4 27 Peak Tracking Total 7 | . 6 6 2 7 Tactical Retreats 15 | . 3 10 . 2 Traps | -11 -10 -9 -9 -8 ------- Run | Yrd Mat Mat Min Mat Traps Triggered . | . . . . . Indirectly . | . . . . . Trap Hack Attempts . | . . . . . Triggered . | . . . . . Disarmed . | . . . . . Reprogrammed . | . . . . . Reused . | . . . . . Traps Extracted . | . . . . . Installed . | . . . . . Triggered . | . . . . . Machines | -11 -10 -9 -9 -8 ---------- Run | Yrd Mat Mat Min Mat Machines Disabled 10 | . 1 6 1 2 Max in Single Turn 3 | . 1 3 1 1 Garrison Access 1 | . . . . 1 Machines Repaired . | . . . . . Machines Dismantled . | . . . . . Machines Sabotaged . | . . . . . Overloaded Fab Kills . | . . . . . Hacking | -11 -10 -9 -9 -8 --------- Run | Yrd Mat Mat Min Mat Machines Accessed 5 | . 1 4 . . Terminals 3 | . . 3 . . Fabricators . | . . . . . Repair Stations 1 | . 1 . . . Recycling Units . | . . . . . Scanalyzers 1 | . . 1 . . Garrison Access . | . . . . . Total Hacks 12 | . 3 9 . . Successful 5 | . 2 3 . . Failed 7 | . 1 6 . . Catastrophic 1 | . 1 . . . Database Lockouts . | . . . . . Manual . | . . . . . Terminals 8 | . . 8 . . Fabricators . | . . . . . Repair Stations 3 | . 3 . . . Recycling Units . | . . . . . Scanalyzers 1 | . . 1 . . Garrison Access . | . . . . . Terminal Hacks 2 | . . 2 . . Hauler Manifests 1 | . . 1 . . Zone Layout 1 | . . 1 . . Fabricator Hacks . | . . . . . Repair Station Hacks 2 | . 2 . . . Scan Component 1 | . 1 . . . Repair 1 | . 1 . . . Recycling Unit Hacks . | . . . . . Scanalyzer 1 | . . 1 . . Retrieve Study 1 | . . 1 . . Garrison Access Hacks . | . . . . . Unauthorized Hacks . | . . . . . Terminals . | . . . . . Fabricators . | . . . . . Repair Stations . | . . . . . Recycling Units . | . . . . . Scanalyzers . | . . . . . Garrison Access . | . . . . . Data Cores Recovered 1 | . . . . 1 Used . | . . . . . Hacking Detections 2 | . 1 1 . . Full Trace Events 2 | . 1 1 . . Feedback Events . | . . . . . Feedback Blocked . | . . . . . Robot Schematics Acquired . | . . . . . Robots Built . | . . . . . Authchips . | . . . . . Time . | . . . . . Total Robot Build Rating . | . . . . . Part Schematics Acquired . | . . . . . Parts Built . | . . . . . Authchips . | . . . . . Time . | . . . . . Total Part Build Rating . | . . . . . Part Studies Acquired 1 | . . 1 . . Parts Repaired 1 | . 1 . . . Time 26 | . 26 . . . Parts Recycled . | . . . . . Recycled Matter . | . . . . . Retrieved Matter . | . . . . . Retrieved Components . | . . . . . Parts Scanalyzed . | . . . . . Part Schematics Acquired . | . . . . . Parts Damaged . | . . . . . Bothacking | -11 -10 -9 -9 -8 ------------ Run | Yrd Mat Mat Min Mat Used RIF Installer . | . . . . . Robots Hacked . | . . . . . Non-combat . | . . . . . Combat . | . . . . . Robot Hacks Applied . | . . . . . Relay Couplers Released 3 | . . . . 3 Machine Destruction 3 | . . . . 3 Fabnet Peak Effective % . | . . . . . Robots Rewired . | . . . . . Allies Hacked . | . . . . . Hacks Repelled . | . . . . . Allies | -11 -10 -9 -9 -8 -------- Run | Yrd Mat Mat Min Mat Total Allies . | . . . . . Largest Group . | . . . . . Highest-Rated Group . | . . . . . Highest-Rated Ally . | . . . . . Total Orders . | . . . . . Ally Attacks . | . . . . . Total Damage . | . . . . . Kills . | . . . . . Allies Corrupted . | . . . . . Allies Melted . | . . . . . Intel | -11 -10 -9 -9 -8 ------- Run | Yrd Mat Mat Min Mat Active Infowar (turns) 2152 | . . 1566 313 273 Optics 609 | . . 609 . . Sensors 2029 | . . 1443 313 273 Robot Analysis Total . | . . . . . Derelict Logs Recovered 2 | . . . 2 . Drone Launches . | . . . . . Drone Recoveries . | . . . . . Exploration | -11 -10 -9 -9 -8 ------------- Run | Yrd Mat Mat Min Mat Turns Passed 2704 | 55 328 1585 313 423 Spaces Moved 2772 | 40 352 1207 713 460 Core 100 | 2 11 . . 87 Treads . | . . . . . Legs 797 | 38 42 717 . . Wheels 4 | . 4 . . . Hover . | . . . . . Flight 1871 | . 295 490 713 373 Fastest Speed 32 | 50 37 34 34 32 Average Speed 64 | 116 49 90 34 48 Slowest Speed 380 | 120 130 380 34 200 Overloaded Moves . | . . . . . Propulsion Burnouts . | . . . . . Robots Hopped 5 | . 2 . 3 . Potential Cave-ins . | . . . . . Cave-ins Triggered . | . . . . . Exploration Rate (%) 45 | 3 39 68 94 21 Regions Visited 4 Branch Regions 1 Pre-discovered Areas 1 | . . . 1 . Known Exits Taken . | . . . . . Unknown Exits Taken 4 | 1 1 1 1 . Scrap Searched 2 | . . . 2 . Spaces Dug . | . . . . . Terrain Destroyed 12 | . . 5 7 . Melee . | . . . . . Projectile . | . . . . . AOE 12 | . . 5 7 . Terrain Rammed . | . . . . . Walls Destroyed . | . . . . . Machines Disabled . | . . . . . Actions | -11 -10 -9 -9 -8 --------- Run | Yrd Mat Mat Min Mat Total 3375 | 45 442 1526 769 593 Wait 293 | . 31 148 47 67 Move 2758 | 39 347 1206 706 460 Hop 5 | . 2 . 3 . Pick Up 19 | . 6 9 2 2 Fast Attach 31 | 5 4 16 . 6 Attach 13 | . 3 6 . 4 Detach 1 | . . . . 1 Swap 19 | 1 5 10 2 1 Drop 18 | . 1 13 3 1 Fire 194 | . 40 110 6 38 Melee . | . . . . . Ram 16 | . 3 . . 13 Kick 7 | . . 7 . . Crush . | . . . . . Escape Stasis . | . . . . . Rewire 1 | . . 1 . . Trap . | . . . . . Miscellaneous . | . . . . . Route ------- -11/Scrapyard -10/Materials (discovered 2 exits: *Mat x2) -9/Materials (discovered 3 exits: *Mat / [*Min x2]) -9/Mines (discovered 2 exits: *Mat x2) -8/Materials History --------- Turn | Location | Event 5 | -11/Scrapyard | Discovered new exit (range 15) 56 | -11/Scrapyard | Entered Materials 148 | -10/Materials | Discovered new exit (range 9) 211 | -10/Materials | Repaired Flight Unit 267 | -10/Materials | Discovered new exit (range 8) 328 | -10/Materials | Core integrity fell below 50% 356 | -10/Materials | Lost 7 parts (2p2n3w) 373 | -10/Materials | Build established: Mutant 384 | -10/Materials | Entered another Materials area 384 | -9/Materials | Evolved 2 slots: Propulsion x2 821 | -9/Materials | Discovered new exit (range 8) 924 | -9/Materials | Discovered new exit (range 17) 1239 | -9/Materials | Lost 5 parts (2n1u2w) 1537 | -9/Materials | Core integrity fell below 50% 1629 | -9/Materials | Build established: Scavenger-Mutant 1890 | -9/Materials | Discovered new exit (range 6) 1969 | -9/Materials | Entered Mines 1976 | -9/Mines | Received a Rocket Launcher from a helpful Derelict 1982 | -9/Mines | Discovered new exit (range 13) 1993 | -9/Mines | Learned Materials emergency access door positions 1996 | -9/Mines | Found a Scrap Suit stashed away for nefarious purposes 1998 | -9/Mines | Found Scrap Suit 2005 | -9/Mines | Discovered new exit (range 9) 2032 | -9/Mines | Learned location of Storage (-9) 2264 | -9/Mines | Joined a pair of Derelicts in attacking an 0b10 outpost 2282 | -9/Mines | Entered Materials 2282 | -8/Materials | Evolved 2 slots: Power x1, Utility x1 2509 | -8/Materials | Lost 3 parts (1n2w) 2593 | -8/Materials | Core integrity fell below 50% 2650 | -8/Materials | Lost 8 parts (2p3n1u2w) 2675 | -8/Materials | Core integrity fell below 20% 2705 | -8/Materials | Destroyed by G-47 Trooper with Particle Gun Last Messages --------------- 02631_ R-06 Scavenger collects Heat Sink. 02635_ R-06 Scavenger collects Corrupted Imp. Ion Engine. 02637_ Acquired Imp. Heat Sink. 02638_ R-06 Scavenger collects Corrupted Lgt. Treads. 02646_ Acquired 25 matter. 02652_ C-45 Heavy ARC bursts open, deploying its payload. 02652_ G-50 Soldier unfolds itself. 02652_ G-47 Trooper unfolds itself. 02652_ L-31 Rogue unfolds itself. 02652_ G-47 Trooper unfolds itself. 02652_ M-28 Smith unfolds itself. 02671_ Lgt. Nuclear Core destroyed. 02675_ G-47 Trooper destroyed. 02680_ Ion Cannon destroyed. 02683_ Slammed into G-47 Trooper. 02685_ Weight Redist. System destroyed. 02686_ Slammed into G-47 Trooper. 02686_ Imp. Targeting Computer broken. 02686_ Destabilizing: Short circuit. 02686_ Critical hit (Burn: +37). Map ----- +----------------------------------------------------+ | ?????????????????????????????????????????????????? | | ?????????????????????????????????????????????????? | | ?????????????????????????????????????????????????? | | ?????????????????????????????????????????????????? | | ?????????????????????????????????????????????????? | | ????????????????????+?????+??????????????????????? | | ?????????????????????????????????????????????????? | | ?????????????????????????????????????????????????? | | ?????????????????????????????????? ????????????? | | ?????????????????????????????????? #???????????? | | ?????????????????????????????????? #???????????? | | ?????????????????????????????????? #???????????? | | ?????????????????????????????????# #???????????? | | ?????????????????????????????????# #???????????? | | ?????????????????????????????????# #???????????? | | ?????????????????????????????????# #???????????? | | ?????????????????????????????????# #???????????? | | ????????????????????????########## #???????????? | | ????????????????????????# # #?????####### | | ????????????????????????# # #?????# | | ????????????????????????# # #?????#! [[! | | ????????????????????????# """ # #????## [[! | | ????????????????????????# """"" + #????# [! | | ????????????????????????# """""g# #????## [% | | ????????????????????????# """"" #%% ############# | | ????????????????????????#@ """ # % ## ##% | | ????????????????????????# g # ## ]] ! ##= | | ????????????????????????########## ## ]= / | | ?????????????????????????????????# # ] ""## | | ?????????????????????????????????# =## Y"## | | ?????????????????????????????????# [%#?? * ""## | | ?????????????????????????????????# =#???? ## | | ?????????????????????????????????# #######/### | | ?????????????????????????????????# | | ?????????????????????????????????# | | ?????????????????????????????????# | | ?????????????????????????????????############### | | ???????????????????????????????????????????????### | | ?????????????????????????????????????????????????# | | ?????????????????????????????????????????????????# | | ?????????????????????????????????????????????????# | | ?????????????????????????????????#######???????### | | ?????????????????????????????????# #???????# | | ?????????????????????????????????# """ #?####### | | ?????????????????????????????????# "T" #?# | | ?????????????????????????????????# " " #?# ##### | | ?????????????????????????????????# #?? #???# | | ?????????????????????????????????# !#?? #???## | | ?????????????????????????????????# #?# #????# | | ?????????????????????????????????# " #?# #????# | +----------------------------------------------------+ Best States ------------- Heat Dissipation 45 Energy Generation 23 Energy Capacity 275 Matter Stores 340 Matter Capacity 400 Sight Range 18 Robot Scan Range 14 Terrain Scan Density 10 Additional Mass Support 6 Evasion (%) 63 Targeting Accuracy 6 Item Schematics ----------------- None Robot Schematics ------------------ None Fabricated ------------ Nothing Repaired ---------- Flight Unit | 10% | -10/Materials Studied --------- Flight Unit | -9/Materials | Hacked Alien Tech Used ----------------- None Achievements -------------- None Challenges ------------ None Game ------ Seed ElectronPersonalWartreads Manual? 0 Play Time 00:37:58 Cumulative 31.4 hours Start 2026.04.02 @ 13:55:50 End 2026.04.02 @ 14:31:36 Sessions 1 Manual Loads 0 Difficulty Rogue Special Mode None Game No. 55 Rogue 55 Adventurer 0 Explorer 0 Win Type - Total 0 Types 0/0/0/0/0/0/0/0/0/0 Lore% 8 Gallery% 21 Achievement% 18 Wizard Run 0 Options --------- Layout 0 ASCII 0 Keyboard 0 Movement Mouse Keybinds 0 Fullscreen 1 Font 24/Smallcaps Map View 38x25 Zoom Use 98% Tactical HUD 1 Map Filters NONE Filters NONE Steam 1 RUN: c3095bce-7c24-4673-b8b1-d23fc89dce6c